bitfinex-derivatives/quotes_BTCF0:USTF0_20250602
["timestamp","ask_amount","ask_price","bid_price","bid_amount"]
[1748858096843,0.15014646,104640.0,104630.0,1.32079381]
[1748858097038,0.15114646,104640.0,104630.0,1.32379381]
[1748858097245,0.15114646,104640.0,104630.0,1.32479381]
[1748858097747,0.003,104640.0,104630.0,1.32479381]
[1748858098556,0.003,104640.0,104630.0,1.42036581]
[1748858099049,0.003,104640.0,104630.0,1.67036581]
[1748858100248,1e-07,104640.0,104630.0,2.16660022]
[1748858100441,0.64318948,104660.0,104630.0,1.97554082]
[1748858100442,0.32923166,104660.0,104630.0,1.97554082]
[1748858100638,0.26931926,104660.0,104650.0,0.69805751]
[1748858100838,0.14953009,104670.0,104660.0,0.1910048]
[1748858101047,0.14953009,104670.0,104660.0,1.99197362]
[1748858101245,0.002,104670.0,104660.0,2.11751761]
[1748858101645,0.002,104670.0,104660.0,2.36751761]
[1748858102154,0.002,104670.0,104660.0,2.4428758]
[1748858102347,0.005,104670.0,104660.0,2.29664139]
[1748858103145,0.005,104670.0,104660.0,2.04664139]
[1748858103544,0.007,104670.0,104660.0,2.0562274]
[1748858103948,0.007,104670.0,104660.0,2.6147474]
[1748858104657,0.007,104670.0,104660.0,2.76098181]
[1748858106358,0.007,104670.0,104660.0,2.6247474]
[1748858108747,0.002,104700.0,104690.0,0.1909501]
[1748858108956,0.2584319,104700.0,104690.0,0.93316451]
[1748858109151,0.2584319,104700.0,104690.0,0.99786451]
[1748858109948,0.2584319,104700.0,104690.0,0.99886451]
[1748858109949,0.2644319,104700.0,104690.0,0.99886451]
[1748858110655,0.6252319,104700.0,104690.0,0.99886451]
[1748858110859,0.84645605,104700.0,104690.0,0.1092]
[1748858111060,0.84645605,104700.0,104690.0,0.7558301]
[1748858111455,0.84645605,104700.0,104690.0,0.7560301]
[1748858111755,0.84045605,104700.0,104690.0,0.7550301]
[1748858112559,0.84045605,104700.0,104690.0,0.7540301]
[1748858112948,0.98669046,104700.0,104690.0,0.0002]
[1748858113255,0.1909501,104690.0,104680.0,0.33431571]
[1748858113463,0.6458501,104690.0,104680.0,0.89755571]
[1748858113658,0.2850501,104690.0,104680.0,0.89755571]
[1748858114054,0.6458501,104690.0,104680.0,0.89755571]
[1748858114252,0.6458501,104690.0,104680.0,0.89775571]
[1748858114458,0.6458501,104690.0,104680.0,0.89975571]
[1748858116455,0.79208451,104690.0,104680.0,0.89919571]
[1748858116658,0.79208451,104690.0,104680.0,0.30131141]
[1748858116961,0.79208451,104690.0,104680.0,0.75619141]
[1748858117166,0.79208451,104690.0,104680.0,0.75599141]
[1748858117358,0.79208451,104690.0,104680.0,0.75619141]
[1748858117761,0.79408451,104690.0,104680.0,0.75419141]
[1748858118563,0.6478501,104690.0,104680.0,0.75419141]
[1748858118760,0.0961,104690.0,104680.0,0.90042582]
[1748858118965,0.0961,104690.0,104680.0,1.32392582]
[1748858119171,0.0326,104690.0,104680.0,1.32492582]
[1748858120463,0.0326,104690.0,104680.0,1.32692582]
[1748858120869,0.0336,104690.0,104680.0,1.32892582]
[1748858122171,0.001,104690.0,104680.0,1.32892582]
[1748858122476,0.001,104690.0,104680.0,1.18269141]
[1748858122672,0.001,104690.0,104680.0,1.32892582]
[1748858123171,0.001,104690.0,104680.0,1.34240732]
[1748858123363,0.001,104690.0,104680.0,1.43793132]
[1748858124070,0.0347,104700.0,104690.0,0.1909501]
[1748858124369,0.002,104700.0,104690.0,1.17466601]
[1748858124675,0.002,104700.0,104690.0,1.27018201]
[1748858124868,0.002,104700.0,104690.0,0.90018201]
[1748858125066,0.002,104700.0,104690.0,0.7414661]
[1748858125371,0.002,104700.0,104690.0,0.90118201]
[1748858125761,0.0332,104700.0,104690.0,0.90118201]
[1748858126071,0.0332,104700.0,104690.0,2.1459501]
[1748858126262,0.0332,104700.0,104690.0,1.1474501]
[1748858126263,0.0656,104700.0,104690.0,1.1474501]
[1748858126465,0.2565319,104700.0,104690.0,1.1474501]
[1748858126863,0.2565319,104700.0,104690.0,1.1476501]
[1748858127174,0.0656,104700.0,104690.0,1.30764601]
[1748858127381,0.0656,104700.0,104690.0,1.33764601]
[1748858128969,0.2565319,104700.0,104690.0,0.97684601]
[1748858129165,0.0656,104700.0,104690.0,1.33764601]
[1748858129369,0.2565319,104700.0,104690.0,1.1779301]
[1748858129570,0.0656,104700.0,104690.0,0.49244601]
[1748858129870,0.6173319,104700.0,104690.0,0.3024301]
[1748858130075,0.77704781,104700.0,104690.0,0.1919501]
[1748858130276,0.77704781,104700.0,104690.0,0.7567501]
[1748858130572,0.77704781,104700.0,104690.0,0.3022301]
[1748858130776,0.77704781,104700.0,104690.0,0.7567101]
[1748858131167,0.6173319,104700.0,104690.0,0.7567101]
[1748858131363,0.6173319,104700.0,104690.0,0.1921501]
[1748858131580,0.76455912,104700.0,104690.0,0.7571101]
[1748858131777,0.57362722,104700.0,104690.0,0.7571101]
[1748858132077,0.40375912,104700.0,104690.0,0.7571101]
[1748858132272,0.21282722,104700.0,104690.0,0.7571101]
[1748858132576,0.21282722,104700.0,104690.0,0.94792601]
[1748858132773,0.40375842,104700.0,104690.0,0.7882101]
[1748858133079,0.21282722,104700.0,104690.0,0.7882101]
[1748858134777,0.21282722,104700.0,104690.0,0.8191101]
[1748858135780,0.40375842,104700.0,104690.0,0.8191101]
[1748858136277,0.40375842,104700.0,104690.0,0.7878501]
[1748858136481,0.40375842,104700.0,104690.0,0.3024301]
[1748858136779,0.76455842,104700.0,104690.0,0.3024301]
[1748858136974,0.76455842,104700.0,104690.0,0.7566701]
[1748858138180,0.76455842,104700.0,104690.0,0.7884701]
[1748858138878,0.76455842,104700.0,104690.0,0.3342301]
[1748858139074,0.21282722,104700.0,104690.0,0.7887101]
[1748858139278,0.21282722,104700.0,104690.0,0.94842601]
[1748858139480,0.21282722,104700.0,104690.0,0.98092601]
[1748858141083,0.40375842,104700.0,104690.0,0.98092601]
[1748858141581,0.2565312,104700.0,104690.0,0.8208101]
[1748858144368,0.0656,104700.0,104690.0,1.34132601]
[1748858144775,0.2565312,104700.0,104690.0,0.98052601]
[1748858145282,0.2565312,104700.0,104690.0,0.8208101]
[1748858145474,0.40375842,104700.0,104690.0,0.8208101]
[1748858149193,0.21282722,104700.0,104690.0,0.8208101]
[1748858149589,0.40375842,104700.0,104690.0,0.8208101]
[1748858150577,0.40375842,104700.0,104690.0,0.7554301]
[1748858150780,0.76455842,104700.0,104690.0,0.7558301]
[1748858151184,0.76455842,104700.0,104690.0,0.9016772]
[1748858151386,0.76455842,104700.0,104690.0,0.9344772]
[1748858152283,0.76455842,104700.0,104690.0,0.7884301]
[1748858154182,0.21282722,104700.0,104690.0,0.9662772]
[1748858154382,0.40375842,104700.0,104690.0,0.9662772]
[1748858154576,0.76455842,104700.0,104690.0,0.5128772]
[1748858154791,0.76455842,104700.0,104690.0,0.8195101]
[1748858156478,0.76455842,104700.0,104690.0,0.3668301]
[1748858156792,0.76455842,104700.0,104690.0,0.8189901]
[1748858157191,0.76455842,104700.0,104690.0,0.8191901]
[1748858157693,0.76455842,104700.0,104690.0,0.8184301]
[1748858158093,0.6173312,104700.0,104690.0,0.8184301]
[1748858161200,0.6173312,104700.0,104690.0,0.3663101]
[1748858161496,0.9094254,104700.0,104690.0,0.11096]
[1748858161695,0.1909494,104690.0,104680.0,0.30087071]
[1748858161895,0.7927965,104690.0,104680.0,0.10990301]
[1748858162102,1.09614285,104690.0,104680.0,0.10990301]
[1748858162290,1.19614285,104690.0,104680.0,0.11010301]
[1748858162489,1.09614285,104690.0,104680.0,0.11010301]
[1748858162685,1.19614285,104690.0,104680.0,0.11010301]
[1748858162885,1.19714285,104690.0,104680.0,0.11310301]
[1748858163086,1.09714285,104690.0,104680.0,0.11310301]
[1748858163804,1.19714285,104690.0,104680.0,0.11310301]
[1748858164103,1.09714285,104690.0,104680.0,0.11310301]
[1748858164485,1.34914285,104690.0,104680.0,0.11110301]
[1748858164686,1.34914285,104690.0,104680.0,0.11310301]
[1748858165198,1.44914285,104690.0,104680.0,0.11310301]
[1748858165400,1.45214285,104690.0,104680.0,0.11110301]
[1748858165699,1.46176321,104690.0,104680.0,0.11110301]
[1748858166095,0.337033,104670.0,104660.0,1.0844]
[1748858166294,0.1910041,104660.0,104650.0,0.19312465]
[1748858166504,0.7930512,104660.0,104650.0,0.75476465]
[1748858166799,0.7930512,104660.0,104650.0,0.75496465]
[1748858167004,0.94100967,104660.0,104650.0,0.75496465]
[1748858168095,0.94100967,104660.0,104650.0,0.30508465]
[1748858168296,0.94200967,104660.0,104650.0,0.75876465]
[1748858168491,0.94200967,104660.0,104650.0,0.76836766]
[1748858168806,0.94200967,104660.0,104650.0,0.76636766]
[1748858169009,1.01771245,104660.0,104650.0,0.75576465]
[1748858171587,0.87166535,104660.0,104650.0,0.75576465]
[1748858171895,0.25516125,104660.0,104650.0,0.93271175]
[1748858172097,0.22466125,104660.0,104650.0,1.32651175]
[1748858172292,0.07670278,104660.0,104650.0,1.32651175]
[1748858172499,1.11436743,104670.0,104660.0,0.1910042]
[1748858172692,0.90654508,104670.0,104660.0,0.2871042]
[1748858173500,0.98239127,104670.0,104660.0,0.2871042]
[1748858173803,0.98339127,104670.0,104660.0,0.2871042]
[1748858174494,0.98439127,104670.0,104660.0,0.2871042]
[1748858174699,0.93664147,104670.0,104660.0,0.2871042]
[1748858174911,0.58674767,104670.0,104660.0,0.4331513]
[1748858175201,0.77773367,104670.0,104660.0,0.4331513]
[1748858175401,0.77673367,104670.0,104660.0,0.4341513]
[1748858175593,0.77573367,104670.0,104660.0,0.4341513]
[1748858179604,0.80613367,104670.0,104660.0,0.4341513]
[1748858180198,0.80613367,104670.0,104660.0,0.2881042]
[1748858181609,0.6581752,104670.0,104660.0,0.2881042]
[1748858184401,0.6581752,104670.0,104660.0,0.7391842]
[1748858184802,0.8042223,104670.0,104660.0,0.7391842]
[1748858185001,0.8359223,104670.0,104660.0,0.7391842]
[1748858185701,0.8685223,104670.0,104660.0,0.7391842]
[1748858185901,1.01648077,104670.0,104660.0,0.7391842]
[1748858189096,0.87043367,104670.0,104660.0,0.7391842]
[1748858189703,1.01648077,104670.0,104660.0,0.7391842]
[1748858190612,0.83783367,104670.0,104660.0,0.7391842]
[1748858192206,0.83819759,104670.0,104660.0,0.7391842]
[1748858192809,0.83919759,104670.0,104660.0,0.7401842]
[1748858193203,0.87179759,104670.0,104660.0,0.7401842]
[1748858194110,0.87179759,104670.0,104660.0,0.7421842]
[1748858201113,1.01784469,104670.0,104660.0,0.2259042]
[1748858201319,1.16389179,104670.0,104660.0,0.1950046]
[1748858201634,1.22339175,104670.0,104660.0,0.6455246]
[1748858201822,1.22339175,104670.0,104660.0,0.44331677]
[1748858202023,1.0155694,104670.0,104660.0,0.44331677]
[1748858202524,1.0155694,104670.0,104660.0,0.61878589]
[1748858202917,1.3112869,104670.0,104660.0,0.61878589]
[1748858203114,1.4112869,104670.0,104660.0,0.61878589]
[1748858203626,1.1155694,104670.0,104660.0,0.61878589]
[1748858203819,1.0155694,104670.0,104660.0,0.61878589]
[1748858204020,1.1155694,104670.0,104660.0,0.42778129]
[1748858204229,0.1910046,104660.0,104650.0,1.42045275]
[1748858204430,0.7616517,104660.0,104650.0,1.52929275]
[1748858204630,0.7616517,104660.0,104650.0,1.97961275]
[1748858205032,0.82349454,104660.0,104650.0,1.97961275]
[1748858205329,0.96954164,104660.0,104650.0,1.97961275]
[1748858206320,0.97054164,104660.0,104650.0,1.98261275]
[1748858206531,0.82449454,104660.0,104650.0,2.01521275]
[1748858206725,0.82449454,104660.0,104650.0,2.05041275]
[1748858207226,0.63448994,104660.0,104650.0,2.04441275]
[1748858207423,0.63448994,104660.0,104650.0,2.19045985]
[1748858207935,0.0658,104660.0,104650.0,2.19045985]
[1748858208523,0.21420091,104660.0,104650.0,2.19045985]
[1748858209237,0.21320091,104660.0,104650.0,2.04541275]
[1748858209636,0.21220091,104660.0,104650.0,2.04641275]
[1748858209828,0.18090091,104660.0,104650.0,2.04641275]
[1748858210032,0.37190551,104660.0,104650.0,2.04641275]
[1748858211539,0.18090091,104660.0,104650.0,2.04641275]
[1748858211833,0.2235046,104660.0,104650.0,2.04641275]
[1748858212041,0.37190551,104660.0,104650.0,2.04641275]
[1748858213235,0.18090091,104660.0,104650.0,2.04641275]
[1748858213429,0.37190551,104660.0,104650.0,2.04641275]
[1748858214334,0.37190551,104660.0,104650.0,0.96233275]
[1748858217838,0.55065261,104660.0,104650.0,0.96233275]
[1748858220439,0.91145261,104660.0,104650.0,0.51201275]
[1748858220636,0.91132992,104660.0,104650.0,0.96233275]
[1748858221035,0.7630517,104660.0,104650.0,0.96233275]
[1748858221234,0.91132761,104660.0,104650.0,0.96233275]
[1748858221732,0.6170046,104660.0,104650.0,0.96233275]
[1748858222132,0.82489454,104660.0,104650.0,0.96233275]
[1748858222841,0.6170046,104660.0,104650.0,0.96233275]
[1748858224147,0.82451046,104660.0,104650.0,0.96233275]
[1748858224728,0.6170046,104660.0,104650.0,0.96233275]
[1748858224932,0.7630517,104660.0,104650.0,0.38430265]
[1748858225135,0.7630517,104660.0,104650.0,0.80218265]
[1748858225644,0.7630517,104660.0,104650.0,0.80198265]
[1748858225835,0.7630517,104660.0,104650.0,0.80218265]
[1748858226138,0.7640517,104660.0,104650.0,0.80118265]
[1748858226343,0.7650517,104660.0,104650.0,0.80018265]
[1748858227537,0.7650517,104660.0,104650.0,0.78897894]
[1748858228337,0.97256978,104660.0,104650.0,0.78897894]
[1748858230140,0.82652268,104660.0,104650.0,0.78897894]
[1748858230344,0.7650517,104660.0,104650.0,0.85067894]
[1748858230743,0.97256978,104660.0,104650.0,0.85067894]
[1748858231340,0.7650517,104660.0,104650.0,0.85067894]
[1748858231644,0.6190046,104660.0,104650.0,0.85067894]
[1748858231950,0.76726748,104660.0,104650.0,0.85067894]
[1748858232844,0.57626288,104660.0,104650.0,0.85067894]
[1748858233151,0.37376798,104660.0,104650.0,0.99672604]
[1748858233344,0.2255051,104660.0,104650.0,0.99672604]
[1748858233940,0.5863051,104660.0,104650.0,0.99672604]
[1748858234443,0.5863051,104660.0,104650.0,0.29155894]
[1748858234637,0.6178051,104660.0,104650.0,0.85019894]
[1748858235032,0.6178051,104660.0,104650.0,0.29155894]
[1748858235235,0.7638522,104660.0,104650.0,0.78849894]
[1748858235649,0.7161099,104660.0,104650.0,0.1084]
[1748858235951,0.9548703,104660.0,104650.0,0.54326384]
[1748858236137,0.9548703,104660.0,104650.0,0.54306384]
[1748858236344,0.1910233,104650.0,104640.0,1.41860761]
[1748858236544,0.96794648,104650.0,104640.0,1.97720761]
[1748858236746,1.00104648,104650.0,104640.0,1.92944781]
[1748858238647,0.85499938,104650.0,104640.0,1.92944781]
[1748858239151,0.85499938,104650.0,104640.0,1.93144781]
[1748858240755,0.85499938,104650.0,104640.0,1.96144781]
[1748858243057,0.85499938,104650.0,104640.0,1.40284781]
[1748858243256,0.85499938,104650.0,104640.0,1.96144781]
[1748858246153,0.49419938,104650.0,104640.0,1.96144781]
[1748858246458,0.85499938,104650.0,104640.0,1.96144781]
[1748858246658,0.85499938,104650.0,104640.0,1.96132781]
[1748858249364,0.85499938,104650.0,104640.0,1.99182781]
[1748858251969,0.85499938,104650.0,104640.0,1.43334781]
[1748858252166,0.85499938,104650.0,104640.0,1.99182781]
[1748858252367,0.49419938,104650.0,104640.0,1.99182781]
[1748858252674,0.85499938,104650.0,104640.0,1.99182781]
[1748858254269,0.6474233,104650.0,104640.0,1.99182781]
[1748858256373,0.4254,104650.0,104640.0,1.99182781]
[1748858256565,0.4254,104650.0,104640.0,1.72544201]
[1748858256566,0.14825706,104650.0,104640.0,1.72544201]
[1748858256766,0.05817756,104650.0,104640.0,2.64468201]
[1748858256970,0.05817756,104660.0,104650.0,0.1910234]
[1748858257174,0.05817756,104660.0,104650.0,0.4333705]
[1748858257476,0.04817756,104660.0,104650.0,0.4333705]
[1748858258072,0.24018266,104660.0,104650.0,0.4333705]
[1748858258273,0.24118266,104660.0,104650.0,0.4333705]
[1748858259571,0.23918266,104660.0,104650.0,0.4353705]
[1748858261378,0.04817756,104660.0,104650.0,0.4353705]
[1748858261678,0.23918266,104660.0,104650.0,0.4353705]
[1748858261879,0.63168266,104660.0,104650.0,0.4353705]
[1748858262078,0.79108118,104660.0,104650.0,0.4353705]
[1748858262674,0.82428118,104660.0,104650.0,0.2893234]
[1748858262871,0.82428118,104660.0,104650.0,0.3976434]
[1748858263073,0.97032828,104660.0,104650.0,0.8478834]
[1748858263667,0.82428118,104660.0,104650.0,0.8478834]
[1748858265671,0.82428118,104660.0,104650.0,0.8478434]
[1748858265874,0.6167051,104660.0,104650.0,0.8478434]
[1748858266073,0.6167051,104660.0,104650.0,0.2895234]
[1748858266277,0.6167051,104660.0,104650.0,0.8478434]
[1748858266472,0.6167051,104660.0,104650.0,0.3978434]
[1748858266781,0.6167051,104660.0,104650.0,0.8478434]
[1748858269079,0.82442047,104660.0,104650.0,0.8478434]
[1748858270185,0.97046757,104660.0,104650.0,0.2895234]
[1748858270380,0.97046757,104660.0,104650.0,0.7515034]
[1748858270683,0.97046757,104660.0,104650.0,0.7513034]
[1748858270684,0.82442047,104660.0,104650.0,0.7513034]
[1748858270888,0.82442047,104660.0,104650.0,0.7827034]
[1748858271088,0.82442047,104660.0,104650.0,0.8150034]
[1748858271290,0.82442047,104660.0,104650.0,0.8140034]
[1748858271482,0.82542047,104660.0,104650.0,0.8130034]
[1748858271683,0.82642047,104660.0,104650.0,0.8130034]
[1748858272289,0.6187051,104660.0,104650.0,0.8130034]
[1748858272677,0.6187051,104660.0,104650.0,0.9590505]
[1748858272981,0.76703171,104660.0,104650.0,0.9590505]
[1748858273780,0.73383171,104660.0,104650.0,0.9590505]
[1748858273986,0.5855051,104660.0,104650.0,0.9590505]
[1748858276780,0.73383171,104660.0,104650.0,0.9590505]
[1748858276982,0.73383171,104660.0,104650.0,0.8130034]
[1748858277183,0.76383171,104660.0,104650.0,0.9590505]
[1748858277682,0.76383171,104660.0,104650.0,0.8130034]
[1748858278487,0.75383171,104660.0,104650.0,0.8130034]
[1748858279284,0.75383171,104660.0,104650.0,0.9590505]
[1748858279285,0.18202661,104660.0,104650.0,0.9590505]
[1748858279583,0.0337,104660.0,104650.0,0.9590505]
[1748858279980,0.2247056,104660.0,104650.0,0.9590505]
[1748858280179,0.0337,104660.0,104650.0,0.9590505]
[1748858281078,0.18202661,104660.0,104650.0,0.9590505]
[1748858281487,0.18202661,104660.0,104650.0,1.3198505]
[1748858281679,0.15032661,104660.0,104650.0,1.3198505]
[1748858281882,0.002,104660.0,104650.0,1.3198505]
[1748858282078,0.15046962,104670.0,104660.0,0.1910056]
[1748858282283,0.00214301,104670.0,104660.0,0.7912527]
[1748858283786,0.19313081,104670.0,104660.0,0.6452056]
[1748858283991,0.61773081,104670.0,104660.0,0.8424456]
[1748858284179,0.65103081,104670.0,104660.0,0.2874056]
[1748858284379,0.94540452,104670.0,104660.0,0.2558056]
[1748858284583,0.94540452,104670.0,104660.0,0.7832456]
[1748858284784,0.94540452,104670.0,104660.0,0.7854456]
[1748858285080,0.94540452,104670.0,104660.0,0.7852456]
[1748858285688,0.79935742,104670.0,104660.0,0.7854456]
[1748858285994,0.79835742,104670.0,104660.0,0.7844456]
[1748858286996,0.79835742,104670.0,104660.0,0.7814456]
[1748858287195,0.79835742,104670.0,104660.0,0.7824456]
[1748858295517,0.79835742,104670.0,104660.0,0.3326056]
[1748858295805,0.79835742,104670.0,104660.0,0.7823256]
[1748858298802,0.79835742,104670.0,104660.0,0.7822856]
[1748858300399,0.65003081,104670.0,104660.0,0.7822856]
[1748858301802,0.85774618,104670.0,104660.0,0.7822856]
[1748858303902,0.85774618,104670.0,104660.0,0.7822456]
[1748858304894,0.29177172,104690.0,104680.0,0.1909701]
[1748858305193,0.0347,104700.0,104690.0,0.1909518]
[1748858305398,0.3955,104700.0,104690.0,0.9247589]
[1748858305704,0.0672,104700.0,104690.0,0.9881589]
[1748858306199,0.0672,104700.0,104690.0,0.9883589]
[1748858306401,0.0672,104700.0,104690.0,1.3491589]
[1748858306804,0.0347,104700.0,104690.0,1.3491589]
[1748858307010,0.0347,104700.0,104690.0,1.2031118]
[1748858307202,0.0347,104700.0,104690.0,0.9883589]
[1748858307511,0.0347,104700.0,104690.0,0.99813145]
[1748858308108,0.0347,104700.0,104690.0,0.99913145]
[1748858308703,0.7324807,104700.0,104690.0,0.40336435]
[1748858308907,0.4365807,104700.0,104690.0,0.82218435]
[1748858309112,0.2905336,104700.0,104690.0,0.96803145]
[1748858309410,0.0996,104700.0,104690.0,0.99913145]
[1748858309612,0.0996,104700.0,104690.0,1.00033145]
[1748858311110,0.0671,104700.0,104690.0,1.00033145]
[1748858311804,0.2580336,104700.0,104690.0,1.00033145]
[1748858312205,0.0671,104700.0,104690.0,1.00033145]
[1748858313014,0.0347,104700.0,104690.0,1.00033145]
[1748858313215,0.2256336,104700.0,104690.0,1.00033145]
[1748858313410,0.0347,104700.0,104690.0,1.36113145]
[1748858313617,0.2256336,104700.0,104690.0,1.00033145]
[1748858314218,0.0347,104700.0,104690.0,1.00033145]
[1748858314809,0.2256336,104700.0,104690.0,1.00033145]
[1748858315422,0.2256336,104700.0,104690.0,1.36113145]
[1748858315624,0.0347,104700.0,104690.0,1.00033145]
[1748858316906,0.002,104700.0,104690.0,1.36113145]
[1748858318317,0.002,104700.0,104690.0,0.91161145]
[1748858318518,0.002,104700.0,104690.0,1.36101145]
[1748858318719,0.0352,104700.0,104690.0,1.36101145]
[1748858320519,0.2261336,104700.0,104690.0,1.36093145]
[1748858320718,0.2261336,104700.0,104690.0,0.29672435]
[1748858321021,0.7957807,104700.0,104690.0,0.11]
[1748858321319,0.2889336,104700.0,104690.0,0.1931518]
[1748858321514,0.2889336,104700.0,104690.0,0.0022]
[1748858321515,0.7957807,104700.0,104690.0,0.0022]
[1748858321714,0.7957807,104700.0,104690.0,0.55956]
[1748858321909,0.7957807,104700.0,104690.0,0.1102]
[1748858322118,0.7957807,104700.0,104690.0,0.55736]
[1748858322423,0.1909518,104690.0,104680.0,1.37065951]
[1748858322614,0.7596989,104690.0,104680.0,1.92797951]
[1748858323214,0.7596989,104690.0,104680.0,1.37085951]
[1748858323418,0.7596989,104690.0,104680.0,1.19242301]
[1748858323728,0.7606989,104690.0,104680.0,1.63101057]
[1748858323924,0.6146518,104690.0,104680.0,0.75363311]
[1748858324322,0.7606989,104690.0,104680.0,0.56266301]
[1748858324621,0.7606989,104690.0,104680.0,0.75343311]
[1748858324821,0.7606989,104690.0,104680.0,0.75363311]
[1748858325812,0.6166518,104690.0,104680.0,0.74963311]
[1748858326019,0.7656989,104690.0,104680.0,0.74963311]
[1748858327122,0.7656989,104690.0,104680.0,0.19231311]
[1748858327318,0.7656989,104690.0,104680.0,0.74963311]
[1748858328427,0.6196518,104690.0,104680.0,0.74963311]
[1748858328625,0.7656989,104690.0,104680.0,0.74963311]
[1748858332528,1.1264989,104690.0,104680.0,0.74963311]
[1748858332923,0.4048989,104690.0,104680.0,0.74963311]
[1748858333131,1.1264989,104690.0,104680.0,0.74963311]
[1748858333727,0.9804518,104690.0,104680.0,0.78263311]
[1748858335526,1.1264989,104690.0,104680.0,0.78263311]
[1748858335832,1.1264989,104690.0,104680.0,0.74963311]
[1748858336533,1.1264989,104690.0,104680.0,0.19231311]
[1748858336827,1.1264989,104690.0,104680.0,0.74947311]
[1748858337028,1.1264989,104690.0,104680.0,0.74943311]
[1748858337231,1.1264989,104690.0,104680.0,0.74923311]
[1748858337432,1.1264989,104690.0,104680.0,0.74943311]
[1748858338032,1.13606332,104690.0,104680.0,0.74943311]
[1748858338631,1.1264989,104690.0,104680.0,0.74943311]
[1748858340332,1.1264989,104690.0,104680.0,0.55846301]
[1748858340638,1.2264989,104690.0,104680.0,0.10922301]
[1748858340839,1.2264989,104690.0,104680.0,0.55846301]
[1748858341033,1.09014595,104690.0,104680.0,0.55826301]
[1748858341228,1.23619305,104690.0,104680.0,0.55846301]
[1748858342130,1.2264989,104690.0,104680.0,0.55846301]
[1748858346137,1.2264989,104690.0,104680.0,0.74943341]
[1748858347026,0.9804518,104690.0,104680.0,0.74943341]
[1748858347226,1.1264989,104690.0,104680.0,0.78003341]
[1748858347431,1.1264989,104690.0,104680.0,0.84423341]
[1748858349434,1.1264989,104690.0,104680.0,0.81133341]
[1748858349745,1.2264989,104690.0,104680.0,0.58906301]
[1748858349941,1.2264989,104690.0,104680.0,0.74943331]
[1748858350135,1.2264989,104690.0,104680.0,0.55826301]
[1748858350335,1.2264989,104690.0,104680.0,0.74943331]
[1748858350539,1.1264989,104690.0,104680.0,0.74943331]
[1748858350847,1.2264989,104690.0,104680.0,0.78103331]
[1748858351044,1.2264989,104690.0,104680.0,0.78095331]
[1748858352038,1.1264989,104690.0,104680.0,0.78095331]
[1748858352646,1.1264989,104690.0,104680.0,0.75421935]
[1748858352844,1.1264989,104690.0,104680.0,0.78741935]
[1748858354647,0.7656989,104690.0,104680.0,0.78741935]
[1748858354846,0.9804518,104690.0,104680.0,0.78741935]
[1748858356140,1.1264989,104690.0,104680.0,0.78741935]
[1748858357941,1.1264989,104690.0,104680.0,0.23037935]
[1748858358134,1.2264989,104690.0,104680.0,0.7797301]
[1748858358534,1.1264989,104690.0,104680.0,0.7795301]
[1748858358740,1.1264989,104690.0,104680.0,0.8107301]
[1748858359044,1.1264989,104690.0,104680.0,0.8109301]
[1748858361654,1.2264989,104690.0,104680.0,0.0002]
[1748858361846,1.2264989,104690.0,104680.0,0.55708]
[1748858362347,1.1264989,104690.0,104680.0,0.7480502]
[1748858362548,1.2264989,104690.0,104680.0,0.7480502]
[1748858362952,1.52242175,104690.0,104680.0,0.7480502]
[1748858363447,1.27637465,104690.0,104680.0,0.7809502]
[1748858363648,1.42242175,104690.0,104680.0,0.7809502]
[1748858364042,1.42242175,104690.0,104680.0,0.2238702]
[1748858364253,1.42242175,104690.0,104680.0,0.7807502]
[1748858365353,1.42242175,104690.0,104680.0,0.8115502]
[1748858366049,1.52242175,104690.0,104680.0,0.8115502]
[1748858366251,1.42242175,104690.0,104680.0,0.8115502]
[1748858366645,1.27637465,104690.0,104680.0,0.8115502]
[1748858366949,1.24447465,104690.0,104680.0,0.9575973]
[1748858367153,1.0945989,104690.0,104680.0,0.8115502]
[1748858367344,1.1261989,104690.0,104680.0,0.8115502]
[1748858367543,1.1261989,104690.0,104680.0,0.8117502]
[1748858369941,1.42212175,104690.0,104680.0,0.8117502]
[1748858371745,1.42212175,104690.0,104680.0,0.17178]
[1748858371942,1.42212175,104690.0,104680.0,0.58986]
[1748858372148,1.42212175,104690.0,104680.0,0.0329]
[1748858372343,1.1261989,104690.0,104680.0,0.14078]
[1748858372543,1.1261989,104690.0,104680.0,0.58966]
[1748858372956,1.1261989,104690.0,104680.0,0.7806301]
[1748858374056,0.4045989,104690.0,104680.0,0.76509799]
[1748858374246,1.1261989,104690.0,104680.0,0.76509799]
[1748858374450,1.1261989,104690.0,104680.0,0.79659799]
[1748858375850,1.1261989,104690.0,104680.0,0.60562789]
[1748858376049,1.1261989,104690.0,104680.0,0.79659809]
[1748858380256,0.7276,104690.0,104680.0,0.94264519]
[1748858380562,0.9185518,104690.0,104680.0,0.79659809]
[1748858380763,0.9496518,104690.0,104680.0,0.79659809]
[1748858381065,1.1282989,104690.0,104680.0,0.79639809]
[1748858381266,0.9792518,104690.0,104680.0,0.79759809]
[1748858382061,0.9772518,104690.0,104680.0,0.79759809]
[1748858382864,0.6184518,104690.0,104680.0,0.79759809]
[1748858383460,0.7644989,104690.0,104680.0,0.24103809]
[1748858383663,0.7644989,104690.0,104680.0,0.79747809]
[1748858392779,0.4036989,104690.0,104680.0,0.79747809]
[1748858392977,1.1252989,104690.0,104680.0,0.79747809]
[1748858395775,0.7644989,104690.0,104680.0,0.79747809]
[1748858400387,0.7644989,104690.0,104680.0,0.60650789]
[1748858401180,0.91061716,104690.0,104680.0,0.10868]
[1748858401495,0.91061716,104690.0,104670.0,0.03194301]
[1748858401496,0.1909681,104680.0,104670.0,0.10762301]
[1748858401683,0.98733346,104680.0,104670.0,0.55614301]
[1748858401882,1.08733346,104680.0,104670.0,0.55614301]
[1748858402387,0.7951681,104680.0,104670.0,0.55614301]
[1748858402580,0.6951681,104680.0,104670.0,0.55634301]
[1748858402779,0.98733346,104680.0,104670.0,0.55634301]
[1748858402980,0.98733346,104680.0,104670.0,0.55734301]
[1748858403186,0.6951681,104680.0,104670.0,0.55734301]
[1748858403388,0.6451681,104680.0,104670.0,0.55734301]
[1748858403689,0.6133681,104680.0,104670.0,0.65514301]
[1748858403994,0.7594987,104680.0,104670.0,0.65514301]
[1748858404492,0.96702264,104680.0,104670.0,0.65514301]
[1748858405085,0.79089204,104680.0,104670.0,0.99225871]
[1748858405281,0.43009204,104680.0,104670.0,0.99225871]
[1748858405886,0.79089204,104680.0,104670.0,0.99225871]
[1748858406090,0.43009204,104680.0,104670.0,0.99225871]
[1748858406292,0.79089204,104680.0,104670.0,0.99225871]
[1748858406687,0.59992394,104680.0,104670.0,0.99225871]
[1748858406893,0.20752394,104680.0,104670.0,0.99225871]
[1748858407481,0.20752394,104680.0,104670.0,1.13548981]
[1748858407482,0.1909673,104680.0,104670.0,1.13548981]
[1748858409484,0.72532951,104690.0,104680.0,0.1909674]
[1748858409685,0.72532951,104690.0,104680.0,0.2536674]
[1748858409989,0.36094301,104690.0,104680.0,0.745322]
[1748858410189,0.00014301,104690.0,104680.0,1.106122]